Workbook

Sheet Sheet1
A1: FORWARD KINAMATICS | M1: INVERSE KINAMATICS
B2: IN | E2: OUT | O2: IN | Q2: OUT
B3: degrees | C3: radians | E3: degrees | F3: radians | G3: * excell uses wrong order for atan2 - note the order is (y,x) instead of the correct formula (x.y)
A4: J1 * ( -170 / 170 ) | B4: 0 | C4: =RADIANS(B4) -> 0 | D4: X | E4: =J54 -> 68.71871156 | N4: X | O4: =E4:E9 -> 68.71871156 | P4: J1 | Q4: =O52 -> -1.572094791e-14
A5: J2 * ( -42 / 90 ) | B5: 0 | C5: =RADIANS((B5)-90) -> -1.570796327 | D5: Y | E5: =J55 -> -1.868109796e-14 | N5: Y | O5: -1.868109796e-14 | P5: J2 | Q5: =T24 -> -3.613220834e-13
A6: J3 * ( -89 / 52 ) | B6: -89 | C6: =RADIANS((B6)+180) -> 1.588249619 | D6: Z | E6: =J56 -> 733.6105603 | N6: Z | O6: 733.6105603 | P6: J3 | Q6: =T25 -> -89
A7: J4 * ( -165 / 165 ) | B7: 0 | C7: =RADIANS(B7) -> 0 | D7: Rz | E7: =DEGREES(F7) -> 6.132491963e-17 | F7: =ATAN2(G54/COS(F8),G55/COS(F8)) -> 1.070321761e-18 | N7: Rz | O7: 6.132491963e-17 | P7: J4 | Q7: =IF(Q8>0,-DEGREES(ATAN2(Z33,-Z34)),-DEGREES(ATAN2(-Z33,Z34))) -> 1.573586833e-11
A8: J5 * ( -105 / 105 ) | B8: 0.001 | C8: =RADIANS(B8) -> 1.745329252e-05 | D8: Ry | E8: =DEGREES(F8) -> 1.001 | F8: =ATAN2((H56^2+I56^2)^0.5,-G56) -> 0.01747074581 | N8: Ry | O8: 1.001 | P8: J5 | Q8: =IF(AND(O49="F",DEGREES(ATAN2(Z35,+SQRT(1-(Z35^2))))>0),DEGREES(ATAN2(Z35,+SQRT(1-(Z35^2)))),DEGREES(ATAN2(Z35,-SQRT(1-(Z35^2))))) -> 0.001000000037
A9: J6 * ( -155 / 155 ) | B9: 0 | C9: =RADIANS((B9)) -> 0 | D9: Rx | E9: 5.357096676e-19 | F9: =ATAN2(I56/COS(F8),H56/COS(F8)) -> 9.349897535e-21 | N9: Rx | O9: 5.357096676e-19 | P9: J6 | Q9: =IF(Q8>0, DEGREES(ATAN2(-X35,Y35)),DEGREES(ATAN2(X35,-Y35))) -> -1.572014971e-11
A11: DH params
A12: joint | B12: Θ | C12: α | D12: d | E12: a | J12: TOOL FRAME | N12: CALC WRIST CENTER - FIND J1 ANGLE | S12: R0-5 @ J1 ZERO | X12: USE J1,J2,J3 ANGLES TO FIND J3 ORENTATION
A13: 1 | B13: =C4 -> 0 | C13: =RADIANS(-90) -> -1.570796327 | D13: 169.77 | E13: 64.2 | I13: X | J13: 0 | N13: R 0-T reverse kin ZYX | S13: X | T13: Y | X13: J1
A14: 2 | B14: -1.570796327 | C14: =RADIANS(0) -> 0 | D14: 0 | E14: 305 | I14: Y | J14: 0 | N14: =COS(RADIANS(O7))*COS(RADIANS(O8)) -> 0.9998473904 | O14: =COS(RADIANS(O7))*SIN(RADIANS(O8))*SIN(RADIANS(O9))-SIN(RADIANS(O7))*COS(RADIANS(O9)) -> -1.07015842e-18 | P14: =COS(RADIANS(O7))*SIN(RADIANS(O8))*COS(RADIANS(O9))+SIN(RADIANS(O7))*SIN(RADIANS(O9)) -> 0.01746985707 | Q14: =O4 -> 68.71871156 | S14: =(Q44*COS(RADIANS(-Q4)))-(Q45*SIN(RADIANS(-Q4))) -> 68.08542925 | T14: =(Q45*COS(RADIANS(-Q4)))+(Q44*SIN(RADIANS(-Q4))) -> 0 | X14: =COS(RADIANS(Q4)) -> 1 | Y14: =-SIN(RADIANS(Q4))*COS(C13) -> 1.68079527e-32 | Z14: =SIN(RADIANS(Q4))*SIN(C13) -> 2.743823025e-16 | AA14: =E13*COS(RADIANS(Q4)) -> 64.2
A15: 3 | B15: 1.588249619 | C15: =RADIANS(90) -> 1.570796327 | D15: 0 | E15: 0 | I15: Z | J15: 0 | N15: =SIN(RADIANS(O7))*COS(RADIANS(O8)) -> 1.07015842e-18 | O15: =SIN(RADIANS(O7))*SIN(RADIANS(O8))*SIN(RADIANS(O9))+COS(RADIANS(O7))*COS(RADIANS(O9)) -> 1 | P15: =SIN(RADIANS(O7))*SIN(RADIANS(O8))*COS(RADIANS(O9))-COS(RADIANS(O7))*SIN(RADIANS(O9)) -> 9.34847065e-21 | Q15: =O5 -> -1.868109796e-14 | X15: =SIN(RADIANS(Q4)) -> -2.743823025e-16 | Y15: =COS(RADIANS(Q4))*COS(C13) -> 6.125742275e-17 | Z15: =-COS(RADIANS(Q4))*SIN(C13) -> 1 | AA15: =E13*SIN(RADIANS(Q4)) -> -1.761534382e-14 | AC15: R 0-2
A16: 4 | B16: 0 | C16: =RADIANS(-90) -> -1.570796327 | D16: 222.63 | E16: 0 | I16: yaw (RZ) | J16: 0 | N16: =-SIN(RADIANS(O8)) -> -0.01746985707 | O16: =COS(RADIANS(O8))*SIN(RADIANS(O9)) -> 9.34847065e-21 | P16: =COS(RADIANS(O8))*COS(RADIANS(O9)) -> 0.9998473904 | Q16: =O6 -> 733.6105603 | S16: L1 | T16: =ABS(S14-E13) -> 3.885429245 | X16: 0 | Y16: =SIN(C13) -> -1 | Z16: =COS(C13) -> 6.125742275e-17 | AA16: =D13 -> 169.77 | AC16: =MMULT(X14:AA17,X20:AA23) -> -6.155991515e-15 | AD16: 1 | AE16: 2.743823025e-16 | AF16: 64.2
A17: 5 | B17: 1.745329252e-05 | C17: =RADIANS(90) -> 1.570796327 | D17: 0 | E17: 0 | I17: pitch (RY) | J17: 0 | N17: 0 | O17: 0 | P17: 0 | Q17: 1 | S17: L2 | T17: =SQRT((S14-E13)^2+(T14-T14)^2+(Q46-D13)^2) -> 527.6103991 | X17: 0 | Y17: 0 | Z17: 0 | AA17: 1 | AC17: -6.125742275e-17 | AD17: -2.743823025e-16 | AE17: 1 | AF17: -3.629885776e-14
A18: 6 | B18: 0 | C18: =RADIANS(0) -> 0 | D18: 36.25 | E18: 0 | I18: roll (RX) | J18: 0 | S18: L3 | T18: =SQRT(D16^2+E15^2) -> 222.63 | AC18: 1 | AD18: 6.155991515e-15 | AE18: 6.125742275e-17 | AF18: 474.77
N19: TOOL FRAME | S19: L4 | T19: =Q46-D13 -> 527.5960924 | X19: J2 | AC19: 0 | AD19: 0 | AE19: 0 | AF19: 1
B20: J1 | N20: =COS(RADIANS(J16))*COS(RADIANS(J17)) -> 1 | O20: =COS(RADIANS(J16))*SIN(RADIANS(J17))*SIN(RADIANS(J18))-SIN(RADIANS(J16))*COS(RADIANS(J18)) -> 0 | P20: =COS(RADIANS(J16))*SIN(RADIANS(J17))*COS(RADIANS(J18))+SIN(RADIANS(J16))*SIN(RADIANS(J18)) -> 0 | Q20: =J13 -> 0 | S20: ΘB | T20: =DEGREES(ATAN(T16/T19)) -> 0.4219414741 | X20: =COS(RADIANS(Q5-90)) -> -6.155991515e-15 | Y20: =-SIN(RADIANS(Q5-90))*COS(C14) -> 1 | Z20: =SIN(RADIANS(Q5-90))*SIN(C14) -> 0 | AA20: =E14*COS(RADIANS(Q5-90)) -> -1.877577412e-12
B21: =COS(B13) -> 1 | C21: =-SIN(B13)*COS(C13) -> 0 | D21: =SIN(B13)*SIN(C13) -> 0 | E21: =E13*COS(B13) -> 64.2 | N21: =SIN(RADIANS(J16))*COS(RADIANS(J17)) -> 0 | O21: =SIN(RADIANS(J16))*SIN(RADIANS(J17))*SIN(RADIANS(J18))+COS(RADIANS(J16))*COS(RADIANS(J18)) -> 1 | P21: =SIN(RADIANS(J16))*SIN(RADIANS(J17))*COS(RADIANS(J18))-COS(RADIANS(J16))*SIN(RADIANS(J18)) -> 0 | Q21: =J14 -> 0 | S21: ΘC | T21: =DEGREES(ACOS((E14^2+T17^2-T18^2)/(2*E14*T17))) -> 0.4219414741 | X21: =SIN(RADIANS(Q5-90)) -> -1 | Y21: =COS(RADIANS(Q5-90))*COS(C14) -> -6.155991515e-15 | Z21: =-COS(RADIANS(Q5-90))*SIN(C14) -> 0 | AA21: =E14*SIN(RADIANS(Q5-90)) -> -305
B22: =SIN(B13) -> 0 | C22: =COS(B13)*COS(C13) -> 6.125742275e-17 | D22: =-COS(B13)*SIN(C13) -> 1 | E22: =E13*SIN(B13) -> 0 | N22: =-SIN(RADIANS(J17)) -> 0 | O22: =COS(RADIANS(J17))*SIN(RADIANS(J18)) -> 0 | P22: =COS(RADIANS(J17))*COS(RADIANS(J18)) -> 1 | Q22: =J15 -> 0 | S22: ΘD | T22: =DEGREES(ACOS((T18^2+E14^2-T17^2)/(2*T18*E14))) -> 179 | X22: 0 | Y22: =SIN(C14) -> 0 | Z22: =COS(C14) -> 1 | AA22: =D14 -> 0 | AC22: R 0-3
B23: 0 | C23: =SIN(C13) -> -1 | D23: =COS(C13) -> 6.125742275e-17 | E23: =D13 -> 169.77 | G23: R 0-2 | N23: 0 | O23: 0 | P23: 0 | Q23: 1 | S23: ΘE | T23: =DEGREES(ATAN(E15/D16)) -> 0 | X23: 0 | Y23: 0 | Z23: 0 | AA23: 1 | AC23: =MMULT(AC16:AF19,X26:AA29) -> 0.9998476952 | AD23: 2.733132131e-16 | AE23: 0.01745240644 | AF23: 64.2
B24: 0 | C24: 0 | D24: 0 | E24: 1 | G24: =MMULT(B21:E24,B27:E30) -> 6.125742275e-17 | H24: 1 | I24: 0 | J24: 64.2 | S24: J2 ∠ | T24: =IF(S14>E13, IF(T19>0, T20-T21, T20-T21+180), -(T20+T21)) -> -3.613220834e-13 | AC24: -2.732714233e-16 | AD24: 1 | AE24: -4.77930166e-18 | AF24: -3.629885776e-14
G25: -6.125742275e-17 | H25: 3.752471841e-33 | I25: 1 | J25: -1.868351394e-14 | N25: INVERT TOOL FRAME | S25: J3 ∠ | T25: =-(T22+T23)+90 -> -89 | X25: J3 | AC25: -0.01745240644 | AD25: 9.329802191e-21 | AE25: 0.9998476952 | AF25: 474.77
B26: J2 | G26: 1 | H26: -6.125742275e-17 | I26: 6.125742275e-17 | J26: 474.77 | N26: =N20 -> 1 | O26: =N21 -> 0 | P26: =N22 -> 0 | Q26: =(N26*Q$20)+(O26*Q$21)+(P26*Q$22) -> 0 | X26: =COS(RADIANS(Q6+180)) -> -0.01745240644 | Y26: =-SIN(RADIANS(Q6+180))*COS(C15) -> -6.124809294e-17 | Z26: =SIN(RADIANS(Q6+180))*SIN(C15) -> 0.9998476952 | AA26: =E15*COS(RADIANS(Q6+180)) -> 0 | AC26: 0 | AD26: 0 | AE26: 0 | AF26: 1
B27: =COS(B14) -> 6.125742275e-17 | C27: =-SIN(B14)*COS(C14) -> 1 | D27: =SIN(B14)*SIN(C14) -> 0 | E27: =E14*COS(B14) -> 1.868351394e-14 | G27: 0 | H27: 0 | I27: 0 | J27: 1 | N27: =O20 -> 0 | O27: =O21 -> 1 | P27: =O22 -> 0 | Q27: =(N27*Q$20)+(O27*Q$21)+(P27*Q$22) -> 0 | X27: =SIN(RADIANS(Q6+180)) -> 0.9998476952 | Y27: =COS(RADIANS(Q6+180))*COS(C15) -> -1.069089439e-18 | Z27: =-COS(RADIANS(Q6+180))*SIN(C15) -> 0.01745240644 | AA27: =E15*SIN(RADIANS(Q6+180)) -> 0
B28: =SIN(B14) -> -1 | C28: =COS(B14)*COS(C14) -> 6.125742275e-17 | D28: =-COS(B14)*SIN(C14) -> 0 | E28: =E14*SIN(B14) -> -305 | N28: =P20 -> 0 | O28: =P21 -> 0 | P28: =P22 -> 1 | Q28: =(N28*Q$20)+(O28*Q$21)+(P28*Q$22) -> 0 | X28: 0 | Y28: =SIN(C15) -> 1 | Z28: =COS(C15) -> 6.125742275e-17 | AA28: =D15 -> 0 | AC28: R 0-3 transposed
B29: 0 | C29: =SIN(C14) -> 0 | D29: =COS(C14) -> 1 | E29: =D14 -> 0 | G29: R 0-3 | N29: 0 | O29: 0 | P29: 0 | Q29: 1 | X29: 0 | Y29: 0 | Z29: 0 | AA29: 1 | AC29: =AC23 -> 0.9998476952 | AD29: =AC24 -> -2.732714233e-16 | AE29: =AC25 -> -0.01745240644
B30: 0 | C30: 0 | D30: 0 | E30: 1 | G30: =MMULT(G24:J27,B33:E36) -> 0.9998476952 | H30: -1.069089439e-18 | I30: 0.01745240644 | J30: 64.2 | AC30: =AD23 -> 2.733132131e-16 | AD30: =AD24 -> 1 | AE30: =AD25 -> 9.329802191e-21
G31: 1.069089439e-18 | H31: 1 | I31: 9.329802191e-21 | J31: -1.868351394e-14 | N31: R 0-6 reverse kin | AC31: =AE23 -> 0.01745240644 | AD31: =AE24 -> -4.77930166e-18 | AE31: =AE25 -> 0.9998476952
B32: J3 | G32: -0.01745240644 | H32: 9.329802191e-21 | I32: 0.9998476952 | J32: 474.77 | N32: =MMULT(N14:Q17,N26:Q29) -> 0.9998473904 | O32: -1.07015842e-18 | P32: 0.01746985707 | Q32: 68.71871156 | X32: R 3-6 (spherical wrist orietation)
B33: =COS(B15) -> -0.01745240644 | C33: =-SIN(B15)*COS(C15) -> -6.124809294e-17 | D33: =SIN(B15)*SIN(C15) -> 0.9998476952 | E33: =E15*COS(B15) -> 0 | G33: 0 | H33: 0 | I33: 0 | J33: 1 | N33: 1.07015842e-18 | O33: 1 | P33: 9.34847065e-21 | Q33: -1.868109796e-14 | X33: =MMULT(AC29:AE31,N32:P34) -> 0.9999999998 | Y33: -2.743415819e-16 | Z33: 1.745329255e-05
B34: =SIN(B15) -> 0.9998476952 | C34: =COS(B15)*COS(C15) -> -1.069089439e-18 | D34: =-COS(B15)*SIN(C15) -> 0.01745240644 | E34: =E15*SIN(B15) -> 0 | N34: -0.01746985707 | O34: 9.34847065e-21 | P34: 0.9998473904 | Q34: 733.6105603 | X34: 2.743414983e-16 | Y34: 1 | Z34: 4.793419616e-18
B35: 0 | C35: =SIN(C15) -> 1 | D35: =COS(C15) -> 6.125742275e-17 | E35: =D15 -> 0 | G35: R 0-4 | N35: 0 | O35: 0 | P35: 0 | Q35: 1 | X35: -1.745329255e-05 | Y35: -4.788631453e-18 | Z35: 0.9999999998
B36: 0 | C36: 0 | D36: 0 | E36: 1 | G36: =MMULT(G30:J33,B39:E42) -> 0.9998476952 | H36: -0.01745240644 | I36: 0 | J36: 68.08542925
G37: 1.069089439e-18 | H37: 6.124809294e-17 | I37: 1 | J37: -1.868143684e-14 | N37: R 0-6 negate
B38: J4 | G38: -0.01745240644 | H38: -0.9998476952 | I38: 6.125742275e-17 | J38: 697.3660924 | N38: 1 | O38: 0 | P38: 0 | Q38: 0
B39: =COS(B16) -> 1 | C39: =-SIN(B16)*COS(C16) -> 0 | D39: =SIN(B16)*SIN(C16) -> 0 | E39: =E16*COS(B16) -> 0 | G39: 0 | H39: 0 | I39: 0 | J39: 1 | N39: 0 | O39: 1 | P39: 0 | Q39: 0
B40: =SIN(B16) -> 0 | C40: =COS(B16)*COS(C16) -> 6.125742275e-17 | D40: =-COS(B16)*SIN(C16) -> 1 | E40: =E16*SIN(B16) -> 0 | N40: 0 | O40: 0 | P40: 1 | Q40: =-D18 -> -36.25
B41: 0 | C41: =SIN(C16) -> -1 | D41: =COS(C16) -> 6.125742275e-17 | E41: =D16 -> 222.63 | G41: R 0-5 (center spherica wrist) | N41: 0 | O41: 0 | P41: 0 | Q41: 1
B42: 0 | C42: 0 | D42: 0 | E42: 1 | G42: =MMULT(G36:J39,B45:E48) -> 0.9998473904 | H42: -1.07015842e-18 | I42: 0.01746985707 | J42: 68.08542925
G43: 1.07015842e-18 | H43: 1 | I43: 9.34847065e-21 | J43: -1.868143684e-14 | N43: R 0-5 reverse kin (center spherica wrist)
B44: J5 | G44: -0.01746985707 | H44: 9.34847065e-21 | I44: 0.9998473904 | J44: 697.3660924 | N44: =MMULT(N32:Q35,N38:Q41) -> 0.9998473904 | O44: -1.07015842e-18 | P44: 0.01746985707 | Q44: 68.08542925
B45: =COS(B17) -> 0.9999999998 | C45: =-SIN(B17)*COS(C17) -> -1.069143718e-21 | D45: =SIN(B17)*SIN(C17) -> 1.745329252e-05 | E45: =E17*COS(B17) -> 0 | G45: 0 | H45: 0 | I45: 0 | J45: 1 | N45: 1.07015842e-18 | O45: 1 | P45: 9.34847065e-21 | Q45: -1.868143684e-14
B46: =SIN(B17) -> 1.745329252e-05 | C46: =COS(B17)*COS(C17) -> 6.125742274e-17 | D46: =-COS(B17)*SIN(C17) -> -0.9999999998 | E46: =E17*SIN(B17) -> 0 | N46: -0.01746985707 | O46: 9.34847065e-21 | P46: 0.9998473904 | Q46: 697.3660924
B47: 0 | C47: =SIN(C17) -> 1 | D47: =COS(C17) -> 6.125742275e-17 | E47: =D17 -> 0 | G47: R 0-6 | N47: 0 | O47: 0 | P47: 0 | Q47: 1
B48: 0 | C48: 0 | D48: 0 | E48: 1 | G48: =MMULT(G42:J45,B51:E54) -> 0.9998473904 | H48: -1.07015842e-18 | I48: 0.01746985707 | J48: 68.71871156
G49: 1.07015842e-18 | H49: 1 | I49: 9.34847065e-21 | J49: -1.868109796e-14 | N49: WRIST CONF. | O49: =IF(B8>0,"F","N") -> F
B50: J6 | G50: -0.01746985707 | H50: 9.34847065e-21 | I50: 0.9998473904 | J50: 733.6105603
B51: =COS(B18) -> 1 | C51: =-SIN(B18)*COS(C18) -> 0 | D51: =SIN(B18)*SIN(C18) -> 0 | E51: =E18*COS(B18) -> 0 | G51: 0 | H51: 0 | I51: 0 | J51: 1 | N51: CALCULATE J1 ANGLE
B52: =SIN(B18) -> 0 | C52: =COS(B18)*COS(C18) -> 1 | D52: =-COS(B18)*SIN(C18) -> 0 | E52: =E18*SIN(B18) -> 0 | N52: J1 ∠ | O52: =IF(Q44=0,RADIANS(-90), IF(AND(Q44>=0,Q45>0),DEGREES(ATAN((Q45)/(Q44))), IF(AND(Q44>=0,Q45<0),DEGREES(ATAN((Q45)/(Q44))), IF(AND(Q44<0,Q45<=0),-180+DEGREES(ATAN((Q45)/(Q44))), IF(AND(Q44<=0,Q45>0),180+DEGREES(ATAN((Q45)/(Q44))),))))) -> -1.572094791e-14
B53: 0 | C53: =SIN(C18) -> 0 | D53: =COS(C18) -> 1 | E53: =D18 -> 36.25 | G53: R 0-T
B54: 0 | C54: 0 | D54: 0 | E54: 1 | G54: =MMULT(G48:J51,B57:E60) -> 0.9998473904 | H54: -1.07015842e-18 | I54: 0.01746985707 | J54: 68.71871156
G55: 1.07015842e-18 | H55: 1 | I55: 9.34847065e-21 | J55: -1.868109796e-14
B56: TOOL FRAME | G56: -0.01746985707 | H56: 9.34847065e-21 | I56: 0.9998473904 | J56: 733.6105603
B57: =COS(RADIANS(J16))*COS(RADIANS(J17)) -> 1 | C57: =COS(RADIANS(J16))*SIN(RADIANS(J17))*SIN(RADIANS(J18))-SIN(RADIANS(J16))*COS(RADIANS(J18)) -> 0 | D57: =COS(RADIANS(J16))*SIN(RADIANS(J17))*COS(RADIANS(J18))+SIN(RADIANS(J16))*SIN(RADIANS(J18)) -> 0 | E57: =J13 -> 0 | G57: 0 | H57: 0 | I57: 0 | J57: 1
B58: =SIN(RADIANS(J16))*COS(RADIANS(J17)) -> 0 | C58: =SIN(RADIANS(J16))*SIN(RADIANS(J17))*SIN(RADIANS(J18))+COS(RADIANS(J16))*COS(RADIANS(J18)) -> 1 | D58: =SIN(RADIANS(J16))*SIN(RADIANS(J17))*COS(RADIANS(J18))-COS(RADIANS(J16))*SIN(RADIANS(J18)) -> 0 | E58: =J14 -> 0
B59: =-SIN(RADIANS(J17)) -> 0 | C59: =COS(RADIANS(J17))*SIN(RADIANS(J18)) -> 0 | D59: =COS(RADIANS(J17))*COS(RADIANS(J18)) -> 1 | E59: =J15 -> 0
B60: 0 | C60: 0 | D60: 0 | E60: 1

Sheet Sheet2
